[Event "SS Manhem Chess Week 2019 Goteborg Open"]
[Site "Molnlycke kulturhus, Biblioteksgatan 2, Molnlycke, Sweden"]
[Date "2019.08.17"]
[Round "5.15"]
[White "Eriksson, Kristian"]
[Black "Alharash, Feras"]
[Result "1-0"]
[TimeControl "15 minutes + 5 seconds per move from move one (Round 1 - 4) / 90 minutes + 30 seconds per move from move one (Round 5 - 8)"]
[WhiteFideId "1705172"]
[BlackFideId "7604645"]
[WhiteElo "2113"]
[BlackElo "1882"]

1. e4 {[%clk 01:30:55]} {[%emt 00:00:04]} e5 {[%clk 01:30:47]} {[%emt
00:00:14]} 2. d4 {[%clk 01:31:01]} {[%emt 00:00:24]} exd4 {[%clk 01:30:41]}
{[%emt 00:00:37]} 3. Nf3 {[%clk 01:31:21]} {[%emt 00:00:09]} Nc6 {[%clk
01:30:43]} {[%emt 00:00:29]} 4. Nxd4 {[%clk 01:31:42]} {[%emt 00:00:08]} Bc5
{[%clk 01:29:59]} {[%emt 00:01:14]} 5. Be3 {[%clk 01:31:30]} {[%emt 00:00:41]}
Qe7 {[%clk 01:29:16]} {[%emt 00:01:14]} 6. Nc3 {[%clk 01:29:24]} {[%emt
00:02:35]} Nxd4 {[%clk 01:28:05]} {[%emt 00:01:42]} 7. Bxd4 {[%clk 01:28:08]}
{[%emt 00:01:45]} Bxd4 {[%clk 01:23:59]} {[%emt 00:04:36]} 8. Qxd4 {[%clk
01:28:30]} {[%emt 00:00:07]} Nf6 {[%clk 01:24:24]} {[%emt 00:00:06]} 9. O-O-O
{[%clk 01:24:42]} {[%emt 00:04:18]} d6 {[%clk 01:20:06]} {[%emt 00:04:48]} 10.
Bb5+ {[%clk 01:19:12]} {[%emt 00:06:00]} c6 {[%clk 01:05:16]} {[%emt 00:15:21]}
11. Be2 {[%clk 01:14:09]} {[%emt 00:05:31]} Be6 {[%clk 00:59:00]} {[%emt
00:06:46]} 12. Qxd6 {[%clk 01:11:38]} {[%emt 00:03:02]} Rd8 {[%clk 00:59:18]}
{[%emt 00:00:12]} 13. Qxd8+ {[%clk 01:09:44]} {[%emt 00:02:24]} Qxd8 {[%clk
00:59:40]} {[%emt 00:00:09]} 14. Rxd8+ {[%clk 01:10:09]} {[%emt 00:00:04]} Kxd8
{[%clk 01:00:03]} {[%emt 00:00:06]} 15. f3 {[%clk 01:06:58]} {[%emt 00:03:41]}
Ke7 {[%clk 01:00:16]} {[%emt 00:00:18]} 16. Kd2 {[%clk 01:05:35]} {[%emt
00:01:52]} Rd8+ {[%clk 00:55:22]} {[%emt 00:05:24]} 17. Ke3 {[%clk 01:05:16]}
{[%emt 00:00:48]} a5 {[%clk 00:50:10]} {[%emt 00:05:44]} 18. Rd1 {[%clk
01:03:15]} {[%emt 00:02:31]} Rxd1 {[%emt 00:00:43]} 19. Bxd1 {[%emt 00:00:15]}
Kd6 {[%clk 00:48:03]} {[%emt 00:01:40]} 20. f4 {[%clk 00:57:47]} {[%emt
00:05:58]} Ng4+ {[%clk 00:48:10]} {[%emt 00:00:21]} 21. Bxg4 {[%clk 00:57:48]}
{[%emt 00:00:31]} Bxg4 {[%clk 00:48:28]} {[%emt 00:00:11]} 22. e5+ {[%clk
00:48:59]} {[%emt 00:09:19]} Ke6 {[%clk 00:41:19]} {[%emt 00:07:39]} 23. Ne4
{[%clk 00:42:49]} {[%emt 00:06:41]} b6 {[%clk 00:40:54]} {[%emt 00:00:55]} 24.
c4 {[%clk 00:41:15]} {[%emt 00:02:04]} Bf5 {[%clk 00:40:06]} {[%emt 00:01:18]}
25. Ng5+ {[%clk 00:21:44]} {[%emt 00:20:00]} Ke7 {[%clk 00:39:58]} {[%emt
00:00:38]} 26. h3 {[%clk 00:18:38]} {[%emt 00:03:38]} h5 {[%clk 00:30:39]}
{[%emt 00:09:48]} 27. Kd4 {[%clk 00:14:18]} {[%emt 00:04:50]} f6 {[%clk
00:26:38]} {[%emt 00:04:32]} 28. Nf3 {[%clk 00:13:23]} {[%emt 00:01:24]} Ke6
{[%clk 00:26:38]} {[%emt 00:00:30]} 29. Ke3 {[%clk 00:10:56]} {[%emt 00:02:58]}
c5 {[%clk 00:26:54]} {[%emt 00:00:14]} 30. exf6 {[%clk 00:09:44]} {[%emt
00:01:42]} gxf6 {[%clk 00:27:17]} {[%emt 00:00:07]} 31. Nd2 {[%clk 00:08:50]}
{[%emt 00:01:24]} Bc2 {[%clk 00:17:15]} {[%emt 00:10:31]} 32. g4 {[%clk
00:07:02]} {[%emt 00:02:19]} hxg4 {[%clk 00:13:10]} {[%emt 00:04:35]} 33. hxg4
{[%clk 00:07:29]} {[%emt 00:00:02]} Bd1 {[%clk 00:13:17]} {[%emt 00:00:23]} 34.
Nf3 {[%clk 00:06:16]} {[%emt 00:01:43]} Bc2 {[%clk 00:12:43]} {[%emt 00:01:04]}
35. f5+ {[%clk 00:05:08]} {[%emt 00:01:39]} Kf7 {[%clk 00:12:32]} {[%emt
00:00:41]} 36. Kf4 {[%clk 00:04:57]} {[%emt 00:00:41]} Bb1 {[%clk 00:12:47]}
{[%emt 00:00:15]} 37. a3 {[%clk 00:05:01]} {[%emt 00:00:26]} Bd3 {[%clk
00:12:10]} {[%emt 00:01:06]} 38. Nd2 {[%clk 00:05:00]} {[%emt 00:00:31]} Be2
{[%clk 00:10:47]} {[%emt 00:01:53]} 39. g5 {[%clk 00:04:27]} {[%emt 00:01:03]}
fxg5+ {[%clk 00:10:48]} {[%emt 00:00:29]} 40. Kxg5 {[%clk 00:04:55]} {[%emt
00:00:03]} Bd3 {[%clk 00:11:01]} {[%emt 00:00:16]} 41. Nf3 {[%clk 00:04:49]}
{[%emt 00:00:36]} Bc2 {[%clk 00:04:20]} {[%emt 00:07:11]} 42. Ne5+ {[%clk
00:04:41]} {[%emt 00:00:39]} Ke7 {[%clk 00:03:30]} {[%emt 00:01:19]} 43. f6+
{[%clk 00:04:23]} {[%emt 00:00:48]} Ke8 {[%clk 00:03:15]} {[%emt 00:00:46]} 44.
Kh6 {[%clk 00:03:39]} {[%emt 00:01:14]} Kf8 {[%clk 00:03:20]} {[%emt 00:00:25]}
45. Nd7+ {[%clk 00:03:37]} {[%emt 00:00:32]} Kf7 {[%clk 00:03:42]} {[%emt
00:00:08]} 46. Kg5 {[%clk 00:03:37]} {[%emt 00:00:30]} Bh7 {[%emt 00:00:53]} 47.
Nxb6 {[%clk 00:03:46]} {[%emt 00:00:19]} Ke6 {[%clk 00:03:38]} {[%emt
00:00:12]} 48. Kh6 {[%clk 00:03:33]} {[%emt 00:00:42]} Bg8 {[%clk 00:04:03]}
{[%emt 00:00:05]} 49. Kg7 {[%clk 00:03:50]} {[%emt 00:00:13]} Bf7 {[%clk
00:04:30]} {[%emt 00:00:03]} 50. Na4 {[%clk 00:03:12]} {[%emt 00:01:08]} Bh5
{[%clk 00:04:40]} {[%emt 00:00:20]} 51. Nxc5+ {[%clk 00:03:35]} {[%emt
00:00:08]} Kd6 {[%clk 00:05:01]} {[%emt 00:00:09]} 52. b4 {[%clk 00:02:49]}
{[%emt 00:01:16]} 1-0

[Event "SS Manhem Chess Week 2019 Goteborg Open"]
[Site "Molnlycke kulturhus, Biblioteksgatan 2, Molnlycke, Sweden"]
[Date "2019.08.17"]
[Round "5.16"]
[White "Ottgard, Andreas"]
[Black "Pettersson, Anders"]
[Result "0-1"]
[TimeControl "15 minutes + 5 seconds per move from move one (Round 1 - 4) / 90 minutes + 30 seconds per move from move one (Round 5 - 8)"]
[WhiteFideId "1730592"]
[BlackFideId "1715143"]
[WhiteElo "1868"]
[BlackElo "2104"]

1. c4 {[%clk 01:28:40]} {[%emt 00:02:19]} b6 {[%clk 01:30:30]} {[%emt
00:00:31]} 2. Nc3 {[%clk 01:28:43]} {[%emt 00:00:26]} Bb7 {[%clk 01:30:54]}
{[%emt 00:00:06]} 3. e4 {[%clk 01:28:23]} {[%emt 00:00:50]} e6 {[%clk
01:30:57]} {[%emt 00:00:27]} 4. g3 {[%clk 01:25:53]} {[%emt 00:03:00]} f5
{[%clk 01:26:04]} {[%emt 00:05:23]} 5. Bg2 {[%clk 01:25:27]} {[%emt 00:00:56]}
Nf6 {[%clk 01:25:03]} {[%emt 00:01:32]} 6. d3 {[%clk 01:18:28]} {[%emt
00:07:29]} Bb4 {[%clk 01:24:42]} {[%emt 00:00:51]} 7. Nge2 {[%clk 01:18:07]}
{[%emt 00:00:51]} fxe4 {[%clk 01:18:03]} {[%emt 00:07:09]} 8. O-O {[%clk
01:15:51]} {[%emt 00:02:45]} O-O {[%clk 01:17:15]} {[%emt 00:01:18]} 9. dxe4
{[%clk 01:14:25]} {[%emt 00:01:56]} Nc6 {[%emt 00:05:05]} 10. h3 {[%clk
01:07:21]} {[%emt 00:05:07]} Ne5 {[%clk 00:55:15]} 11. b3 Qe8 {[%clk 01:05:43]}
12. Be3 0-1

[Event "SS Manhem Chess Week 2019 Goteborg Open"]
[Site "Molnlycke kulturhus, Biblioteksgatan 2, Molnlycke, Sweden"]
[Date "2019.08.17"]
[Round "5.18"]
[White "Svensson, Leif"]
[Black "Knutsson, Hakan"]
[Result "1/2-1/2"]
[TimeControl "15 minutes + 5 seconds per move from move one (Round 1 - 4) / 90 minutes + 30 seconds per move from move one (Round 5 - 8)"]
[WhiteFideId "1702459"]
[BlackFideId "1706810"]
[WhiteElo "2027"]
[BlackElo "1848"]

1. d4 {[%clk 01:30:57]} {[%emt 00:01:21]} Nf6 {[%emt 00:00:11]} 2. Nc3 {[%clk
01:31:22]} {[%emt 00:00:01]} d5 {[%clk 01:31:16]} {[%emt 00:00:07]} 3. Bg5
{[%clk 01:31:46]} {[%emt 00:00:05]} Nbd7 {[%clk 01:31:39]} {[%emt 00:00:07]} 4.
e3 {[%clk 01:32:09]} {[%emt 00:00:06]} e6 {[%clk 01:32:05]} {[%emt 00:00:06]} 5.
f4 {[%clk 01:31:58]} {[%emt 00:00:40]} Be7 {[%clk 01:30:38]} {[%emt 00:01:57]}
6. Nf3 {[%clk 01:32:20]} {[%emt 00:00:08]} h6 {[%clk 01:29:26]} {[%emt
00:01:42]} 7. Bh4 {[%clk 01:29:09]} {[%emt 00:03:42]} Ne4 {[%clk 01:25:46]}
{[%emt 00:04:09]} 8. Bxe7 {[%clk 01:28:47]} {[%emt 00:00:52]} Qxe7 {[%clk
01:26:08]} {[%emt 00:00:08]} 9. Nxe4 {[%clk 01:28:55]} {[%emt 00:00:22]} dxe4
{[%clk 01:26:24]} {[%emt 00:00:14]} 10. Nd2 {[%clk 01:29:16]} {[%emt 00:00:08]}
f5 {[%clk 01:24:05]} {[%emt 00:02:51]} 11. Bc4 {[%clk 01:26:40]} {[%emt
00:03:06]} Nf6 {[%clk 01:22:08]} {[%emt 00:02:26]} 12. Qe2 {[%clk 01:25:33]}
{[%emt 00:01:37]} Bd7 {[%clk 01:19:04]} {[%emt 00:03:34]} 13. Bb3 {[%clk
01:24:46]} {[%emt 00:01:16]} a6 {[%clk 01:12:29]} {[%emt 00:07:05]} 14. h3
{[%clk 01:15:40]} {[%emt 00:09:36]} g6 {[%clk 01:05:52]} {[%emt 00:07:07]} 15.
O-O-O {[%clk 01:10:10]} {[%emt 00:06:00]} b5 {[%clk 01:03:54]} {[%emt
00:02:28]} 16. c4 {[%clk 01:02:06]} {[%emt 00:08:34]} c5 {[%clk 01:00:13]}
{[%emt 00:04:11]} 17. dxc5 {[%clk 00:57:52]} {[%emt 00:04:45]} Qxc5 {[%clk
00:58:03]} {[%emt 00:02:39]} 18. Kb1 {[%clk 00:58:11]} {[%emt 00:00:11]} b4
{[%clk 00:52:36]} {[%emt 00:05:57]} 19. Bc2 {[%clk 00:54:29]} {[%emt 00:04:13]}
Rc8 {[%clk 00:52:49]} {[%emt 00:00:17]} 20. Rc1 {[%clk 00:54:18]} {[%emt
00:00:40]} a5 {[%clk 00:48:27]} {[%emt 00:04:52]} 21. Nb3 {[%clk 00:50:14]}
{[%emt 00:04:35]} Qxc4 {[%clk 00:48:24]} {[%emt 00:00:33]} 22. Qxc4 {[%clk
00:50:36]} {[%emt 00:00:08]} Rxc4 {[%clk 00:48:47]} {[%emt 00:00:08]} 23. Nxa5
{[%clk 00:51:04]} {[%emt 00:00:02]} Rc8 {[%clk 00:46:05]} {[%emt 00:03:10]} 24.
Bb3 {[%clk 00:50:23]} {[%emt 00:01:12]} Ke7 {[%clk 00:45:50]} {[%emt 00:00:45]}
25. Rxc8 {[%clk 00:49:24]} {[%emt 00:01:29]} Rxc8 {[%clk 00:46:05]} {[%emt
00:00:15]} 26. Rc1 {[%clk 00:49:48]} {[%emt 00:00:07]} Rxc1+ {[%clk 00:43:39]}
{[%emt 00:02:56]} 27. Kxc1 {[%clk 00:50:13]} {[%emt 00:00:05]} g5 {[%clk
00:40:17]} {[%emt 00:03:51]} 28. fxg5 {[%clk 00:38:43]} {[%emt 00:12:00]} hxg5
{[%clk 00:40:38]} {[%emt 00:00:09]} 29. g3 {[%clk 00:39:04]} {[%emt 00:00:09]}
e5 {[%clk 00:28:11]} {[%emt 00:12:57]} 30. Nc4 {[%clk 00:33:28]} {[%emt
00:06:05]} f4 {[%clk 00:28:28]} {[%emt 00:00:13]} 31. g4 {[%clk 00:29:59]}
{[%emt 00:03:59]} f3 {[%clk 00:26:30]} {[%emt 00:02:28]} 32. Kd2 {[%clk
00:30:18]} {[%emt 00:00:12]} Bb5 {[%clk 00:26:08]} {[%emt 00:00:52]} 33. Ke1
{[%clk 00:30:13]} {[%emt 00:00:34]} Bxc4 {[%clk 00:26:23]} {[%emt 00:00:16]} 34.
Bxc4 {[%clk 00:30:37]} {[%emt 00:00:06]} Nd7 {[%clk 00:24:52]} {[%emt
00:02:00]} 35. a3 {[%clk 00:28:16]} {[%emt 00:02:51]} bxa3 {[%clk 00:21:43]}
{[%emt 00:03:38]} 36. bxa3 {[%clk 00:28:42]} {[%emt 00:00:05]} Nc5 {[%clk
00:22:01]} {[%emt 00:00:11]} 37. Bf1 {[%clk 00:18:08]} {[%emt 00:11:03]} Kd6
{[%clk 00:20:07]} {[%emt 00:02:25]} 38. Kd2 {[%clk 00:18:29]} {[%emt 00:00:09]}
Na4 {[%clk 00:19:13]} {[%emt 00:01:24]} 39. Bb5 {[%clk 00:13:49]} {[%emt
00:05:09]} 1/2-1/2

[Event "SS Manhem Chess Week 2019 Goteborg Open"]
[Site "Molnlycke kulturhus, Biblioteksgatan 2, Molnlycke, Sweden"]
[Date "2019.08.17"]
[Round "6.1"]
[White "Wiedenkeller, Michael"]
[Black "Le, Quang Long"]
[Result "1-0"]
[TimeControl "15 minutes + 5 seconds per move from move one (Round 1 - 4) / 90 minutes + 30 seconds per move from move one (Round 5 - 8)"]
[WhiteTitle "IM"]
[BlackTitle "IM"]
[WhiteFideId "1700146"]
[BlackFideId "12401749"]
[WhiteElo "2456"]
[BlackElo "2411"]

1. d4 {[%emt 00:03:21]} f5 {[%clk 01:27:42]} {[%emt 00:00:02]} 2. Nc3 {[%emt
00:05:45]} Nf6 {[%clk 01:22:52]} {[%emt 00:00:34]} 3. Bg5 {[%clk 01:30:22]}
{[%emt 00:00:35]} g6 {[%clk 01:22:39]} {[%emt 00:00:42]} 4. Bxf6 {[%clk
01:28:57]} {[%emt 00:01:55]} exf6 {[%clk 01:22:47]} {[%emt 00:00:22]} 5. e3
{[%clk 01:29:09]} {[%emt 00:00:19]} d5 {[%clk 01:22:29]} {[%emt 00:00:48]} 6.
Qf3 {[%emt 00:03:52]} Be6 {[%emt 00:02:14]} 7. Bd3 {[%emt 00:01:15]} c6 {[%clk
01:18:27]} {[%emt 00:02:49]} 8. Nge2 {[%clk 01:24:25]} {[%emt 00:01:07]} Bd6
{[%clk 01:17:51]} {[%emt 00:01:06]} 9. h3 {[%emt 00:18:01]} Nd7 {[%emt
00:00:37]} 10. g4 {[%emt 00:06:46]} fxg4 {[%clk 01:00:08]} {[%emt 00:01:08]} 11.
hxg4 {[%clk 01:17:56]} {[%emt 00:00:10]} Bf7 {[%emt 00:03:00]} 12. Nf4 {[%clk
01:13:35]} {[%emt 00:04:26]} Nf8 {[%clk 00:58:03]} {[%emt 00:00:30]} 13. O-O-O
{[%emt 00:11:05]} Qe7 {[%emt 00:07:40]} 14. e4 {[%emt 00:07:11]} Bxf4+ {[%clk
00:46:17]} {[%emt 00:00:18]} 15. Qxf4 {[%clk 01:00:30]} {[%emt 00:01:07]} Ne6
{[%emt 00:00:20]} 16. Qe3 {[%clk 00:58:55]} {[%emt 00:01:54]} O-O-O {[%clk
00:46:07]} {[%emt 00:01:01]} 17. f4 {[%emt 00:13:42]} dxe4 {[%clk 00:40:11]}
{[%emt 00:00:54]} 18. Bxe4 {[%clk 00:51:19]} {[%emt 00:00:27]} Qd6 {[%clk
00:39:33]} {[%emt 00:01:08]} 19. Ne2 {[%clk 00:46:18]} {[%emt 00:05:31]} Nc7
{[%clk 00:36:41]} {[%emt 00:03:21]} 20. Nc3 {[%emt 00:15:46]} Rhe8 {[%clk
00:28:45]} {[%emt 00:01:52]} 21. Qf3 {[%clk 00:34:21]} {[%emt 00:03:45]} Bg8
{[%clk 00:27:52]} {[%emt 00:01:23]} 22. f5 {[%clk 00:33:09]} {[%emt 00:01:43]}
g5 {[%clk 00:28:00]} {[%emt 00:00:21]} 23. Kb1 {[%clk 00:30:04]} {[%emt
00:03:36]} Rd7 {[%clk 00:27:00]} {[%emt 00:01:30]} 24. b3 {[%emt 00:05:59]}
Red8 {[%clk 00:21:01]} {[%emt 00:02:36]} 25. Kb2 {[%clk 00:24:01]} {[%emt
00:04:58]} Qf8 {[%emt 00:02:59]} 26. Qf2 {[%clk 00:22:27]} {[%emt 00:01:57]}
Kb8 {[%emt 00:02:02]} 27. Bf3 {[%emt 00:04:45]} Ka8 {[%emt 00:00:51]} 28. Ne4
{[%emt 00:04:43]} Nb5 {[%emt 00:00:09]} 29. c3 {[%emt 00:02:24]} Qa3+ {[%clk
00:12:08]} {[%emt 00:00:26]} 30. Kb1 {[%clk 00:17:22]} {[%emt 00:00:16]} Bd5
{[%clk 00:12:03]} {[%emt 00:00:34]} 31. Rc1 {[%emt 00:04:26]} Bxe4+ {[%clk
00:11:05]} {[%emt 00:00:26]} 32. Bxe4 {[%emt 00:00:15]} Re7 {[%clk 00:10:54]}
{[%emt 00:00:27]} 33. Bd3 {[%clk 00:15:01]} {[%emt 00:00:27]} Nc7 {[%clk
00:11:12]} {[%emt 00:00:12]} 34. Rhe1 {[%clk 00:13:59]} {[%emt 00:01:33]} Nd5
{[%clk 00:11:09]} {[%emt 00:00:32]} 35. Bc4 {[%emt 00:02:24]} Nf4 {[%clk
00:10:38]} {[%emt 00:00:51]} 36. Rxe7 {[%clk 00:12:19]} {[%emt 00:00:26]} Qxe7
{[%clk 00:11:06]} {[%emt 00:00:02]} 37. Re1 {[%emt 00:00:14]} Qd6 {[%clk
00:10:41]} {[%emt 00:00:48]} 38. Re3 {[%clk 00:12:24]} {[%emt 00:00:49]} b5
{[%clk 00:09:54]} {[%emt 00:01:18]} 39. Be6 {[%clk 00:12:04]} {[%emt 00:00:50]}
b4 {[%clk 00:09:45]} {[%emt 00:00:39]} 40. Qc2 {[%clk 00:12:17]} {[%emt
00:00:17]} Kb7 {[%emt 00:00:54]} 41. Re4 {[%clk 00:11:49]} {[%emt 00:00:51]}
bxc3 {[%clk 00:08:32]} {[%emt 00:01:26]} 42. Qxc3 {[%clk 00:11:56]} {[%emt
00:00:23]} Ka8 {[%clk 00:08:17]} {[%emt 00:00:44]} 43. Qa5 {[%clk 00:10:21]}
{[%emt 00:02:05]} Qb8 {[%clk 00:06:06]} {[%emt 00:02:41]} 44. Qc5 {[%clk
00:09:07]} {[%emt 00:01:44]} Qd6 {[%clk 00:05:12]} {[%emt 00:01:24]} 45. Qa5
{[%clk 00:07:41]} {[%emt 00:01:56]} Qb8 {[%clk 00:04:52]} {[%emt 00:00:49]} 46.
Qc5 {[%emt 00:02:36]} Qd6 {[%clk 00:04:50]} {[%emt 00:00:27]} 47. Qxd6 {[%clk
00:05:45]} {[%emt 00:00:26]} Rxd6 {[%clk 00:05:14]} {[%emt 00:00:06]} 48. Bf7
{[%clk 00:06:11]} {[%emt 00:00:05]} Kb7 {[%clk 00:04:28]} {[%emt 00:01:16]} 49.
Kc2 {[%emt 00:01:11]} Rd7 {[%clk 00:03:21]} {[%emt 00:00:46]} 50. Be8 {[%clk
00:05:46]} {[%emt 00:01:04]} Rd8 {[%clk 00:03:23]} {[%emt 00:00:27]} 51. Kc3
{[%clk 00:05:20]} {[%emt 00:00:57]} Kb6 {[%clk 00:02:34]} {[%emt 00:01:19]} 52.
Kc4 {[%clk 00:05:23]} {[%emt 00:00:27]} a5 {[%clk 00:02:27]} {[%emt 00:00:37]}
53. a3 {[%clk 00:05:32]} {[%emt 00:00:21]} h6 {[%clk 00:02:17]} {[%emt
00:00:40]} 54. Re7 {[%emt 00:01:29]} Rd6 {[%clk 00:01:04]} {[%emt 00:01:37]} 55.
Bf7 {[%clk 00:04:09]} {[%emt 00:01:00]} Rd8 {[%clk 00:01:19]} {[%emt 00:00:14]}
56. Bg6 {[%clk 00:02:14]} {[%emt 00:02:26]} Nd5 {[%clk 00:00:59]} {[%emt
00:00:49]} 57. Re6 {[%clk 00:02:16]} {[%emt 00:00:28]} Kc7 {[%clk 00:00:40]}
{[%emt 00:00:49]} 58. Kc5 {[%clk 00:01:53]} {[%emt 00:00:54]} Kb7 {[%clk
00:00:33]} {[%emt 00:00:37]} 59. Be8 {[%clk 00:01:50]} {[%emt 00:00:32]} Nf4
{[%clk 00:00:32]} {[%emt 00:00:31]} 60. Bxc6+ {[%clk 00:02:09]} {[%emt
00:00:11]} Kb8 {[%clk 00:00:35]} {[%emt 00:00:28]} 61. Rxf6 {[%clk 00:02:05]}
{[%emt 00:00:34]} h5 {[%clk 00:00:38]} {[%emt 00:00:26]} 62. gxh5 {[%clk
00:02:17]} {[%emt 00:00:18]} Nxh5 {[%clk 00:01:01]} {[%emt 00:00:07]} 63. Rg6
{[%clk 00:02:19]} {[%emt 00:00:28]} 1-0

[Event "SS Manhem Chess Week 2019 Goteborg Open"]
[Site "Molnlycke kulturhus, Biblioteksgatan 2, Molnlycke, Sweden"]
[Date "2019.08.17"]
[Round "6.2"]
[White "Seo, Jung Min"]
[Black "Blomqvist, Erik"]
[Result "1/2-1/2"]
[TimeControl "15 minutes + 5 seconds per move from move one (Round 1 - 4) / 90 minutes + 30 seconds per move from move one (Round 5 - 8)"]
[WhiteTitle "FM"]
[BlackTitle "GM"]
[WhiteFideId "1734687"]
[BlackFideId "1709437"]
[WhiteElo "2409"]
[BlackElo "2507"]

1. e4 {[%clk 01:30:59]} {[%emt 01:09:00]} c5 {[%clk 01:30:53]} {[%emt
00:00:07]} 2. Nf3 {[%clk 01:31:27]} {[%emt 00:00:02]} e6 {[%clk 01:31:04]}
{[%emt 00:00:19]} 3. d4 {[%clk 01:31:55]} {[%emt 00:00:03]} cxd4 {[%clk
01:31:19]} {[%emt 00:00:15]} 4. Nxd4 {[%clk 01:32:23]} {[%emt 00:00:03]} Nc6
{[%clk 01:31:40]} {[%emt 00:00:09]} 5. Nxc6 {[%clk 01:32:33]} {[%emt 00:00:20]}
bxc6 {[%clk 01:32:01]} {[%emt 00:00:08]} 6. Bd3 {[%clk 01:32:59]} {[%emt
00:00:04]} d5 {[%clk 01:31:38]} {[%emt 00:00:53]} 7. O-O {[%clk 01:32:41]}
{[%emt 00:00:48]} Nf6 {[%clk 01:31:42]} {[%emt 00:00:26]} 8. Qe2 {[%clk
01:30:24]} {[%emt 00:02:48]} Be7 {[%clk 01:23:33]} {[%emt 00:08:38]} 9. Nd2
{[%clk 01:30:22]} {[%emt 00:00:31]} Nd7 {[%clk 01:22:17]} {[%emt 00:01:46]} 10.
c4 {[%clk 01:25:44]} {[%emt 00:05:08]} Bb7 {[%clk 01:18:33]} {[%emt 00:04:14]}
11. b3 {[%clk 01:25:13]} {[%emt 00:01:01]} Bf6 {[%clk 01:14:06]} {[%emt
00:04:56]} 12. Rb1 {[%clk 01:25:16]} {[%emt 00:00:28]} O-O {[%clk 01:13:53]}
{[%emt 00:00:43]} 13. Nf3 {[%clk 01:23:44]} {[%emt 00:02:02]} a5 {[%clk
01:10:01]} {[%emt 00:04:22]} 14. Re1 {[%clk 01:20:04]} {[%emt 00:04:10]} h6
{[%clk 00:58:37]} {[%emt 00:11:54]} 15. Ba3 {[%clk 01:17:42]} {[%emt 00:02:53]}
Be7 {[%clk 00:55:01]} {[%emt 00:04:05]} 16. Bb2 {[%clk 01:14:55]} {[%emt
00:03:17]} Bf6 {[%clk 00:53:35]} {[%emt 00:01:56]} 17. Ba3 {[%clk 01:14:11]}
{[%emt 00:01:14]} Be7 {[%clk 00:53:56]} {[%emt 00:00:09]} 18. Bb2 {[%clk
01:14:37]} {[%emt 00:00:05]} Bf6 {[%clk 00:54:19]} {[%emt 00:00:07]} 19. Ba3
{[%clk 01:14:58]} {[%emt 00:00:09]} 1/2-1/2